bitfinex/quotes_BTCUSD_20250902
["timestamp","ask_amount","ask_price","bid_price","bid_amount"]
[1756840019351,0.00281556,110990.0,110970.0,0.1802276]
[1756840019580,0.66659877,110980.0,110970.0,0.3420676]
[1756840019789,0.00527,110980.0,110970.0,0.3420676]
[1756840020845,0.00527,110980.0,110970.0,0.3440676]
[1756840021506,0.01432873,110980.0,110970.0,0.3460676]
[1756840021721,0.00211,110980.0,110970.0,0.3480776]
[1756840021935,0.00211,110980.0,110970.0,0.3512776]
[1756840022186,0.00211,110980.0,110970.0,0.3480776]
[1756840022608,1.02958759,111000.0,110980.0,0.18020195]
[1756840022837,1.02958759,111000.0,110970.0,0.36028904]
[1756840022838,0.67257433,110990.0,110970.0,0.19323904]
[1756840023043,1.00975877,110990.0,110980.0,0.16168]
[1756840023251,0.34527,110990.0,110980.0,0.34189265]
[1756840023475,0.35412214,110990.0,110980.0,0.34189265]
[1756840023681,0.39384232,110990.0,110980.0,0.34189265]
[1756840024097,0.42093399,110990.0,110980.0,0.34189265]
[1756840024739,0.42093399,110990.0,110980.0,0.34289265]
[1756840025399,0.42093399,110990.0,110980.0,0.18121265]
[1756840025578,0.42093399,110990.0,110980.0,0.34261265]
[1756840025983,0.42093399,110990.0,110980.0,0.18121265]
[1756840026185,0.42093399,110990.0,110980.0,0.34257265]
[1756840027855,0.42093399,110990.0,110980.0,0.16216]
[1756840028043,1.08542276,110990.0,110980.0,0.34237265]
[1756840028480,0.41777399,110990.0,110980.0,0.34237265]
[1756840030289,0.41777399,110990.0,110980.0,0.34438265]
[1756840030506,0.41566399,110990.0,110980.0,0.34757265]
[1756840030727,0.41770399,110990.0,110980.0,0.34757265]
[1756840030948,0.41770399,110990.0,110980.0,0.34438265]
[1756840031196,0.42086399,110990.0,110980.0,0.34213265]
[1756840031415,0.41770399,110990.0,110980.0,0.34414265]
[1756840032070,0.41770399,110990.0,110980.0,0.34213265]
[1756840032289,0.42086399,110990.0,110980.0,0.001]
[1756840032511,0.41770399,110990.0,110980.0,0.34213265]
[1756840034373,0.41770399,110990.0,110980.0,0.34414265]
[1756840035296,0.37594381,110990.0,110980.0,0.34733265]
[1756840035540,0.00885214,110990.0,110980.0,0.34733265]
[1756840035937,0.36127948,111010.0,111000.0,0.18018018]
[1756840036144,0.45523547,111010.0,111000.0,0.34094018]
[1756840036580,0.48232352,111010.0,111000.0,0.34094018]
[1756840037068,0.49155768,111010.0,111000.0,0.34094018]
[1756840037287,0.49471768,111010.0,111000.0,0.16072]
[1756840037510,1.15920645,111010.0,111000.0,0.16068]
[1756840037943,1.19978149,111010.0,111000.0,0.16068]
[1756840038384,1.20178149,111010.0,110990.0,0.18019496]
[1756840038602,1.20178149,111010.0,111000.0,0.16068]
[1756840038813,1.19862149,111010.0,111000.0,0.16068]
[1756840039028,1.19962149,111010.0,111000.0,0.16068]
[1756840039243,1.19762149,111010.0,111000.0,0.16068]
[1756840039660,0.53313272,111010.0,111000.0,0.16068]
[1756840039868,0.53213272,111010.0,111000.0,0.16068]
[1756840040713,0.53213272,111010.0,111000.0,0.34086018]
[1756840040920,0.53009272,111010.0,111000.0,0.34606018]
[1756840041127,0.53313272,111010.0,111000.0,0.34287018]
[1756840041334,0.53313272,111010.0,111000.0,0.34606018]
[1756840041753,0.53313272,111010.0,111000.0,0.34287018]
[1756840042999,0.53109272,111010.0,111000.0,0.34606018]
[1756840043431,0.03866287,111010.0,111000.0,0.34606018]
[1756840044513,0.03666287,111010.0,111000.0,0.34606018]
[1756840044723,0.00034066,111010.0,111000.0,0.34606018]
[1756840044943,0.00034066,111010.0,111000.0,0.34906018]
[1756840045181,0.00952432,111010.0,111000.0,0.19138018]
[1756840045405,0.01156432,111010.0,111000.0,0.18819018]
[1756840045623,1.01921309,111010.0,111000.0,0.1662]
[1756840045826,1.01921309,111010.0,111000.0,0.006]
[1756840046242,1.01921309,111010.0,111000.0,0.34354018]
[1756840046456,0.35472432,111010.0,111000.0,0.18318018]
[1756840046667,0.35472432,111010.0,111000.0,0.003]
[1756840046886,0.35472432,111010.0,111000.0,0.34346018]
[1756840047245,0.35472432,111010.0,111000.0,0.34046018]
[1756840047656,0.35156432,111010.0,111000.0,0.34046018]
[1756840047855,0.01256432,111010.0,111000.0,0.34566018]
[1756840048021,0.35537938,111010.0,111000.0,0.18018018]
[1756840048231,0.35256432,111010.0,111000.0,0.34034018]
[1756840048448,0.35156432,111010.0,111000.0,0.34034018]
[1756840049662,0.35472432,111010.0,111000.0,0.16016]
[1756840049876,0.35472432,111010.0,111000.0,0.16116]
[1756840050761,0.35472432,111010.0,111000.0,0.34134018]
[1756840050970,0.35472432,111010.0,111000.0,0.16116]
[1756840051178,0.35472432,111010.0,111000.0,0.34134018]
[1756840051647,0.35156432,111010.0,111000.0,0.34118018]
[1756840052179,0.35156432,111010.0,111000.0,0.18118018]
[1756840052387,0.35156432,111010.0,111000.0,0.34118018]
[1756840052838,0.35156432,111010.0,111000.0,0.001]
[1756840053047,0.35472432,111010.0,111000.0,0.34114018]
[1756840053267,0.38181109,111010.0,111000.0,0.34114018]
[1756840053467,0.37865109,111010.0,111000.0,0.34114018]
[1756840053994,1.04313986,111010.0,111000.0,0.16096]
[1756840054128,1.04629986,111010.0,111000.0,0.16096]
[1756840054325,0.37865109,111010.0,111000.0,0.16096]
[1756840054538,1.31837979,111010.0,111000.0,0.16096]
[1756840054742,1.33931861,111010.0,111000.0,0.16096]
[1756840055854,1.49927861,111010.0,111000.0,0.16096]
[1756840056401,1.15915467,111010.0,111000.0,0.16096]
[1756840056621,1.15599467,111010.0,111000.0,0.16096]
[1756840058467,1.33615861,111010.0,111000.0,0.16096]
[1756840058689,1.15599467,111010.0,111000.0,0.16096]
[1756840059053,0.4915059,111010.0,111000.0,0.34316018]
[1756840059254,0.4915059,111010.0,111000.0,0.34620018]
[1756840060361,1.15599467,111010.0,111000.0,0.16602]
[1756840061170,1.33615861,111010.0,111000.0,0.16096]
[1756840061387,1.33615861,111010.0,111000.0,0.001]
[1756840061621,1.08459414,111010.0,111000.0,0.001]
[1756840062626,1.08459414,111010.0,110990.0,0.15996]
[1756840062785,1.08459414,111010.0,110990.0,0.34015599]
[1756840062786,0.8446256,111000.0,110990.0,0.34015599]
[1756840062989,0.84383029,111000.0,110990.0,0.34015599]
[1756840063188,0.87091981,111000.0,110990.0,0.34015599]
[1756840063653,1.12559296,111000.0,110990.0,0.15996]
[1756840063865,1.12559296,111000.0,110990.0,0.34015641]
[1756840064674,1.30880314,111000.0,110990.0,0.001]
[1756840064879,1.12862296,111000.0,110990.0,0.16092]
[1756840065289,1.12559296,111000.0,110990.0,0.16092]
[1756840065714,1.32974196,111000.0,110990.0,0.001]
[1756840065950,1.50913003,111000.0,110990.0,0.001]
[1756840066951,1.34921003,111000.0,110990.0,0.001]
[1756840067207,1.50913003,111000.0,110990.0,0.001]
[1756840067432,1.51013003,111000.0,110990.0,0.001]
[1756840067647,0.02093882,110990.0,110980.0,0.15992]
[1756840067857,0.78225782,110990.0,110980.0,0.16194]
[1756840068040,0.77944226,110990.0,110980.0,0.16194]
[1756840068497,0.77944226,110990.0,110980.0,0.34519265]
[1756840068498,0.11487481,110990.0,110980.0,0.34519265]
[1756840068713,0.04802834,111000.0,110990.0,0.18019641]
[1756840068930,0.11900551,111000.0,110990.0,0.18019641]
[1756840069149,0.11900551,111000.0,110990.0,0.18525641]
[1756840070921,0.11900551,111000.0,110990.0,0.18625641]
[1756840072058,0.12384082,111000.0,110990.0,0.001]
[1756840072494,1.30858845,111000.0,110990.0,0.16092]
[1756840072707,0.46102551,111000.0,110990.0,0.16294]
[1756840072915,1.12559296,111000.0,110990.0,0.16294]
[1756840073310,1.12559296,111000.0,110990.0,0.001]
[1756840073536,1.12559296,111000.0,110990.0,0.16092]
[1756840073955,1.30577314,111000.0,110990.0,0.16092]
[1756840074306,1.12559296,111000.0,110990.0,0.16092]
[1756840074897,1.30577314,111000.0,110990.0,0.16092]
[1756840075143,1.48966196,111000.0,110990.0,0.001]
[1756840075357,0.013,110990.0,110980.0,0.15992]
[1756840075569,0.774319,110990.0,110980.0,0.15992]
[1756840075767,1.29169985,110990.0,110980.0,0.15992]
[1756840076377,1.11150344,110990.0,110980.0,0.15992]
[1756840076580,1.31879257,110990.0,110980.0,0.15992]
[1756840077207,1.13859616,110990.0,110980.0,0.15992]
[1756840077432,0.47402871,110990.0,110980.0,0.16194]
[1756840077658,0.90106681,110990.0,110980.0,0.15988]
[1756840079150,1.08126322,110990.0,110980.0,0.15988]
[1756840079793,0.90106681,110990.0,110980.0,0.15988]
[1756840080152,0.90106681,110990.0,110980.0,0.001]
[1756840080574,0.47402871,110990.0,110980.0,0.34615265]
[1756840080760,0.47200871,110990.0,110980.0,0.34615265]
[1756840080903,0.44693599,110990.0,110980.0,0.16088]
[1756840081115,0.87397409,110990.0,110980.0,0.16088]
[1756840081316,0.47402871,110990.0,110980.0,0.34311265]
[1756840081567,0.90106681,110990.0,110980.0,0.34109265]
[1756840081771,1.14624295,110990.0,110980.0,0.001]
[1756840082600,0.18021997,110980.0,110960.0,0.25581595]
[1756840082839,0.18021997,110980.0,110960.0,0.35419595]
[1756840082840,0.00281607,110970.0,110960.0,0.35419595]
[1756840083038,0.88270873,110980.0,110970.0,0.18022889]
[1756840083402,0.88191291,110980.0,110960.0,0.35217595]
[1756840083824,0.88191291,110980.0,110970.0,0.18022889]
[1756840084055,0.88191291,110980.0,110970.0,0.18224889]
[1756840084269,0.34,110980.0,110970.0,0.18528889]
[1756840084496,0.42210363,110990.0,110980.0,0.18021265]
[1756840084721,0.38109272,110990.0,110980.0,0.34515265]
[1756840084939,0.04109272,110990.0,110980.0,0.34515265]
[1756840085394,0.013,110990.0,110980.0,0.34515265]
[1756840085620,0.014,110990.0,110980.0,0.34515265]
[1756840085852,0.014,110990.0,110980.0,0.77219075]
[1756840086286,0.014,110990.0,110980.0,0.18527265]
[1756840086528,0.014,110990.0,110980.0,0.34511265]
[1756840086765,0.014,110990.0,110980.0,0.18627265]
[1756840086994,0.4400381,110990.0,110980.0,0.18627265]
[1756840087449,0.4400381,110990.0,110980.0,0.34611265]
[1756840087673,0.013,110990.0,110980.0,0.34611265]
[1756840087903,0.01581556,110990.0,110980.0,0.34911265]
[1756840088135,0.01581556,110990.0,110980.0,0.34811265]
[1756840088387,0.013,110990.0,110980.0,0.34811265]
[1756840088807,0.013,110990.0,110980.0,0.35011265]
[1756840089123,0.013,110990.0,110980.0,0.35311265]
[1756840089528,0.013,110990.0,110980.0,0.35011265]
[1756840089750,0.013,110990.0,110980.0,0.35211265]
[1756840093495,0.013,110990.0,110980.0,0.76192407]
[1756840094167,0.013,110990.0,110980.0,0.35211265]
[1756840094364,0.013,110990.0,110980.0,0.35207265]
[1756840094570,0.013,110990.0,110980.0,0.76188407]
[1756840094755,0.013,110990.0,110980.0,0.19227265]
[1756840094959,0.013,110990.0,110980.0,0.35207265]
[1756840096373,0.013,110990.0,110980.0,0.19227265]
[1756840096574,0.013,110990.0,110980.0,0.35207265]
[1756840098197,0.013,110990.0,110980.0,0.76188407]
[1756840100603,0.013,110990.0,110980.0,0.19227265]
[1756840100806,0.013,110990.0,110980.0,0.35203265]
[1756840101011,0.013,110990.0,110980.0,0.76184407]
[1756840101646,0.013,110990.0,110980.0,0.35203265]
[1756840101964,0.013,110990.0,110980.0,0.76184407]
[1756840104585,0.013,110990.0,110980.0,0.60208407]
[1756840104793,0.013,110990.0,110980.0,0.76180407]
[1756840105621,0.013,110990.0,110980.0,0.60208407]
[1756840105853,0.013,110990.0,110980.0,1.26353148]
[1756840106704,0.013,110990.0,110980.0,0.28418864]
[1756840106934,0.013,110990.0,110980.0,0.85368006]
[1756840107798,0.013,110990.0,110980.0,0.69400006]
[1756840108004,0.013,110990.0,110980.0,0.44386864]
[1756840108239,0.013,110990.0,110980.0,0.85368006]
[1756840110540,0.013,110990.0,110980.0,0.69400006]
[1756840111187,0.013,110990.0,110980.0,0.44382864]
[1756840111398,0.013,110990.0,110980.0,0.85364006]
[1756840112772,0.013,110990.0,110980.0,0.44382864]
[1756840112979,0.013,110990.0,110980.0,0.85364006]
[1756840114465,0.013,110990.0,110980.0,1.26345148]
[1756840114677,0.013,110990.0,110980.0,0.44382864]
[1756840115083,0.013,110990.0,110980.0,1.26345148]
[1756840115365,0.013,110990.0,110980.0,0.44382864]
[1756840115574,0.013,110990.0,110980.0,1.26345148]
[1756840117026,0.013,110990.0,110980.0,1.26341148]
[1756840117879,0.01502,110990.0,110980.0,0.44374864]
[1756840118297,0.01502,110990.0,110980.0,0.28418864]
[1756840118515,0.01502,110990.0,110980.0,0.85356006]
[1756840118738,0.013,110990.0,110980.0,0.85356006]
[1756840118952,0.013,110990.0,110980.0,1.26337148]
[1756840123968,0.013,110990.0,110980.0,0.44370864]
[1756840124187,0.013,110990.0,110980.0,1.26333148]
[1756840128285,0.013,110990.0,110980.0,1.26325148]
[1756840128644,0.013,110990.0,110980.0,1.10381148]
[1756840128866,0.013,110990.0,110980.0,1.26325148]
[1756840130945,0.013,110990.0,110980.0,1.6730629]
[1756840131372,1e-08,110990.0,110980.0,2.53731474]
[1756840131589,1e-08,110990.0,110980.0,2.17750332]
[1756840131998,1e-08,110990.0,110980.0,2.1130629]
[1756840132202,1e-08,110990.0,110980.0,2.17571601]
[1756840132622,1e-08,110990.0,110980.0,1.36109317]
[1756840132796,1e-08,110990.0,110980.0,1.35609317]
[1756840133036,1e-08,110990.0,110980.0,1.19665317]
[1756840133244,1e-08,110990.0,110980.0,1.35605317]
[1756840133455,1e-08,110990.0,110980.0,1.30605317]
[1756840133673,1e-08,110990.0,110980.0,1.26105317]
[1756840133882,1e-08,110990.0,110980.0,1.31105317]
[1756840135964,1e-08,110990.0,110980.0,1.15165317]
[1756840136156,1e-08,110990.0,110980.0,1.31101317]
[1756840136499,1e-08,110990.0,110980.0,1.26101317]
[1756840136709,1e-08,110990.0,110980.0,1.31101317]
[1756840137101,1e-08,110990.0,110980.0,1.58382396]
[1756840138286,1e-08,110990.0,110980.0,1.53382396]
[1756840138512,1e-08,110990.0,110980.0,1.58378396]
[1756840138730,0.00203001,110990.0,110980.0,1.12397254]
[1756840138921,0.00203001,110990.0,110980.0,1.17093254]
[1756840139169,1e-08,110990.0,110980.0,1.10950943]
[1756840139382,1e-08,110990.0,110980.0,1.87913227]
[1756840139639,1e-08,110990.0,110980.0,1.51916043]
[1756840140308,1e-08,110990.0,110980.0,1.35984043]
[1756840140532,0.00203001,110990.0,110980.0,0.96097964]
[1756840140754,0.00504001,110990.0,110980.0,0.61869265]
[1756840140973,0.00504001,110990.0,110980.0,1.02834365]
[1756840141395,0.00504,110990.0,110980.0,1.02334365]
[1756840141597,0.00203,110990.0,110980.0,1.02334365]
[1756840141814,0.00203,110990.0,110980.0,1.02534365]
[1756840142229,0.00203,110990.0,110980.0,1.02334365]
[1756840142435,0.00504,110990.0,110980.0,1.02334365]
[1756840143088,0.00504,110990.0,110980.0,0.34149265]
[1756840143489,0.00504,110990.0,110980.0,0.34349265]
[1756840143920,0.00203,110990.0,110980.0,0.34349265]
[1756840144876,0.00504,110990.0,110980.0,0.34349265]
[1756840146032,0.00203,110990.0,110980.0,0.34349265]
[1756840146661,0.00203,110990.0,110980.0,0.34555265]
[1756840147627,0.00203,110990.0,110980.0,0.18421265]
[1756840147829,0.00504,110990.0,110980.0,0.34345265]
[1756840148351,0.00203,110990.0,110980.0,0.34345265]
[1756840149401,0.00501,110990.0,110980.0,0.18421265]
[1756840149621,0.414661,110990.0,110980.0,0.18421265]
[1756840149900,0.414661,110990.0,110980.0,0.34341265]
[1756840150558,0.00501,110990.0,110980.0,0.34341265]
[1756840150771,0.00782556,110990.0,110980.0,0.34341265]
[1756840152643,0.00782556,110990.0,110980.0,0.18421265]
[1756840152857,0.00782556,110990.0,110980.0,0.34337265]
[1756840155406,0.00484556,110990.0,110980.0,0.34337265]
[1756840155612,0.00203,110990.0,110980.0,0.34337265]
[1756840156598,0.00501,110990.0,110980.0,0.34337265]
[1756840157794,0.00501,110990.0,110980.0,0.33937265]
[1756840158221,0.00203,110990.0,110980.0,0.34237265]
[1756840158988,0.00501,110990.0,110980.0,0.34237265]
[1756840159367,0.00203,110990.0,110980.0,0.34237265]
[1756840160141,0.00203,110990.0,110980.0,0.34440265]
[1756840161238,0.00203,110990.0,110980.0,0.34735265]
[1756840161455,0.00203,110990.0,110980.0,0.18321265]
[1756840161680,0.414661,110990.0,110980.0,0.18321265]
[1756840161903,0.50657699,110990.0,110980.0,0.18321265]
[1756840162128,0.53366971,110990.0,110980.0,0.34225265]
[1756840162539,0.12401871,110990.0,110980.0,0.34225265]
[1756840162956,0.12683427,110990.0,110980.0,0.34225265]
[1756840163574,0.12683427,110990.0,110980.0,0.34221265]
[1756840163996,0.12683427,110990.0,110980.0,0.18321265]
[1756840164210,0.12683427,110990.0,110980.0,0.34221265]
[1756840165343,0.12385427,110990.0,110980.0,0.34221265]
[1756840166371,0.12385427,110990.0,110980.0,0.34424265]
[1756840166584,0.12385427,110990.0,110980.0,0.34221265]
[1756840167605,0.12683427,110990.0,110980.0,0.34217265]
[1756840168033,0.12385427,110990.0,110980.0,0.34217265]
[1756840168608,0.12385427,110990.0,110980.0,0.18321265]
[1756840168946,0.12683427,110990.0,110980.0,0.34217265]
[1756840169151,0.12385427,110990.0,110980.0,0.34217265]
[1756840169710,0.12385427,110990.0,110980.0,0.18321265]
[1756840170125,0.12683427,110990.0,110980.0,0.34113265]
[1756840170328,0.12683427,110990.0,110980.0,0.33913265]
[1756840170712,0.12385427,110990.0,110980.0,0.34013265]
[1756840171084,0.12385427,110990.0,110980.0,0.34216265]
[1756840171292,0.12385427,110990.0,110980.0,0.34116265]
[1756840171494,0.12385427,110990.0,110980.0,0.34511265]
[1756840171719,0.12103871,110990.0,110980.0,0.34511265]
[1756840172405,0.12103871,110990.0,110980.0,0.34216265]
[1756840172969,0.12103871,110990.0,110980.0,0.34511265]
[1756840173177,0.12385427,110990.0,110980.0,0.34511265]
[1756840173401,0.12385427,110990.0,110980.0,0.18121265]
[1756840173618,0.12683427,110990.0,110980.0,0.34013265]
[1756840175550,0.12385427,110990.0,110980.0,0.34013265]
[1756840177824,0.12385427,110990.0,110980.0,0.34511265]
[1756840178247,0.12103871,110990.0,110980.0,0.34511265]
[1756840178454,0.12103871,110990.0,110980.0,0.34216265]
[1756840178899,0.12103871,110990.0,110980.0,0.34531265]
[1756840179550,0.12385427,110990.0,110980.0,0.34531265]
[1756840179757,0.12182427,110990.0,110980.0,0.34531265]
[1756840180195,0.12393427,110990.0,110980.0,0.34531265]
[1756840180619,0.12393427,110990.0,110980.0,0.34204265]
[1756840181262,0.12393427,110990.0,110980.0,0.34001265]
[1756840181897,0.12393427,110990.0,110980.0,0.18121265]
[1756840182105,0.12393427,110990.0,110980.0,0.33997265]
[1756840183454,0.12393427,110990.0,110980.0,0.33993265]
[1756840186649,0.12393427,110990.0,110980.0,0.34192265]
[1756840186839,0.12393427,110990.0,110980.0,0.34507265]
[1756840189639,0.12393427,110990.0,110980.0,0.18635265]
[1756840189843,0.12393427,110990.0,110980.0,0.34499265]
[1756840190496,0.12182427,110990.0,110980.0,0.34499265]
[1756840190704,0.12182427,110990.0,110980.0,0.75464365]
[1756840190705,0.02709272,110990.0,110980.0,0.75464365]
[1756840190913,0.02990828,110990.0,110980.0,0.34499265]
[1756840192959,0.30413068,110990.0,110980.0,0.18320265]
[1756840193175,1.07502494,110990.0,110980.0,0.001]
[1756840193363,1.25311516,110990.0,110980.0,0.001]
[1756840194347,1.25311516,110990.0,110970.0,0.338826]
[1756840194576,1.25311516,110990.0,110970.0,0.341976]
[1756840194577,0.09473181,110980.0,110970.0,0.341976]
[1756840194780,0.09473181,110980.0,110970.0,0.343966]
[1756840194984,0.12182644,110980.0,110970.0,0.343966]
[1756840195159,0.12182644,110980.0,110970.0,0.185366]
[1756840195441,0.12182644,110980.0,110970.0,0.343926]
[1756840195847,0.12182644,110980.0,110970.0,0.185366]
[1756840196051,0.12182644,110980.0,110970.0,0.343926]
[1756840196440,0.12182644,110980.0,110970.0,0.344926]
[1756840196680,0.12182644,110980.0,110970.0,0.754577]
[1756840197523,0.12182644,110980.0,110970.0,0.186366]
[1756840197727,0.12182644,110980.0,110970.0,0.344886]
[1756840197929,0.13070461,110980.0,110970.0,0.344886]
[1756840199310,1.12487117,110980.0,110970.0,0.001]
[1756840199689,1.71377775,110980.0,110970.0,0.001]
[1756840200316,1.55525775,110980.0,110970.0,0.18122889]
[1756840200551,0.73188535,110980.0,110970.0,0.18122889]
[1756840200770,0.89036535,110980.0,110970.0,0.18122889]
[1756840200978,1.30249155,110980.0,110970.0,0.18022889]
[1756840201157,0.36093882,110970.0,110960.0,0.18339459]
[1756840201391,0.45285481,110970.0,110960.0,0.18339459]
[1756840201577,0.6351937,110970.0,110960.0,0.18538459]
[1756840201781,0.48206358,110970.0,110960.0,0.18538459]
[1756840201991,1.07241867,110970.0,110960.0,0.18538459]
[1756840202408,1.07241867,110970.0,110960.0,0.18638459]
[1756840202612,0.66229247,110970.0,110960.0,0.18638459]
[1756840202837,0.89218978,110970.0,110960.0,0.18638459]
[1756840203341,0.89007978,110970.0,110960.0,0.18638459]
[1756840203593,1.07030867,110970.0,110960.0,0.18638459]
[1756840203801,1.07241867,110970.0,110960.0,0.18638459]
[1756840204271,0.89218978,110970.0,110960.0,0.18638459]
[1756840204728,0.89218978,110970.0,110960.0,0.18124459]
[1756840205440,0.48206358,110970.0,110960.0,0.18638459]
[1756840205659,0.89218978,110970.0,110960.0,0.18638459]
[1756840206084,0.89218978,110970.0,110960.0,0.18124459]
[1756840206725,0.89218978,110970.0,110960.0,0.18323459]
[1756840206947,1.07241867,110970.0,110960.0,0.18124459]
[1756840207382,1.07241867,110970.0,110960.0,0.001]
[1756840207383,1.48566487,110970.0,110960.0,0.001]
[1756840207595,1.07553867,110970.0,110960.0,0.001]
[1756840207847,1.09499254,110970.0,110960.0,0.001]
[1756840208058,1.09499254,110970.0,110960.0,0.18024513]
[1756840208284,1.07241867,110970.0,110960.0,0.18221513]
[1756840208494,1.23181867,110970.0,110960.0,0.18221513]
[1756840208690,1.23481867,110970.0,110960.0,0.18221513]
[1756840209115,1.23778867,110970.0,110960.0,0.18024513]
[1756840209740,1.23477867,110970.0,110960.0,0.18221513]
[1756840210161,1.23477867,110970.0,110960.0,0.18535513]
[1756840210371,1.23477867,110970.0,110960.0,0.18024513]
[1756840210581,0.89618978,110970.0,110960.0,0.18535513]
[1756840210835,1.23477867,110970.0,110960.0,0.18535513]
[1756840211496,1.23077867,110970.0,110960.0,0.18535513]
[1756840211818,1.23477867,110970.0,110960.0,0.18535513]
[1756840212388,1.23674867,110970.0,110950.0,0.34180017]
[1756840212616,0.09473232,110960.0,110950.0,0.34194093]
[1756840212878,0.09473232,110960.0,110950.0,0.34391093]
[1756840213087,0.87195846,110960.0,110950.0,0.34391093]
[1756840213305,0.45901593,110960.0,110950.0,0.75403713]
[1756840213523,0.02709994,110960.0,110950.0,0.75403713]
[1756840214391,0.02709994,110960.0,110950.0,0.34491093]
[1756840214660,0.02709994,110960.0,110950.0,0.75503713]
[1756840214877,0.02709994,110960.0,110950.0,0.34491093]
[1756840215098,0.02709994,110960.0,110950.0,0.75503713]
[1756840216919,0.02709994,110960.0,110950.0,0.34491093]
[1756840217103,0.02709994,110960.0,110950.0,0.75503713]
[1756840217312,0.02709994,110960.0,110950.0,0.18651093]
[1756840217535,0.02991627,110960.0,110950.0,0.75491713]
[1756840218153,0.02709994,110960.0,110950.0,0.75491713]
[1756840219515,0.02991627,110960.0,110950.0,0.75491713]
[1756840221023,0.02709994,110960.0,110950.0,0.75491713]
[1756840222501,0.02709994,110960.0,110950.0,1.16504333]
[1756840222719,0.00887817,110980.0,110970.0,0.18022889]
[1756840222929,0.1582,110990.0,110980.0,0.18019788]
[1756840223139,0.6192592,110990.0,110980.0,0.18216788]
[1756840223359,1.0293854,110990.0,110980.0,0.18530788]
[1756840223498,1.0293854,110990.0,110980.0,0.18216788]
[1756840223707,1.20958181,110990.0,110980.0,0.18019788]
[1756840223912,1.21856526,110990.0,110980.0,0.17919788]
[1756840224318,1.22256526,110990.0,110980.0,0.17919788]
[1756840224518,1.04236885,110990.0,110980.0,0.17919788]
[1756840224796,0.63224265,110990.0,110980.0,0.17919788]
[1756840224983,1.03836885,110990.0,110980.0,0.18430788]
[1756840225359,1.22156526,110990.0,110980.0,0.17919788]
[1756840225765,1.22356526,110990.0,110980.0,0.17919788]
[1756840225929,1.04336885,110990.0,110980.0,0.17919788]
[1756840226150,1.04136885,110990.0,110980.0,0.17919788]
[1756840226360,0.63124265,110990.0,110980.0,0.18116788]
[1756840226558,1.03836885,110990.0,110980.0,0.18116788]
[1756840226858,0.63024265,110990.0,110980.0,0.18430788]
[1756840227063,0.62811265,110990.0,110980.0,0.59443408]
[1756840227647,1.22048526,110990.0,110980.0,0.17919788]
[1756840228244,1.04028885,110990.0,110980.0,0.17919788]
[1756840228614,1.22048526,110990.0,110980.0,0.17919788]
[1756840228824,1.22345526,110990.0,110980.0,0.17919788]
[1756840229223,0.88216885,110990.0,110980.0,0.18116788]
[1756840229446,1.03823885,110990.0,110980.0,0.18430788]
[1756840229655,0.62811265,110990.0,110980.0,0.18430788]
[1756840230052,0.46999265,110990.0,110980.0,0.18430788]
[1756840230233,0.62807265,110990.0,110980.0,0.18430788]
[1756840231576,0.62607265,110990.0,110980.0,0.18430788]
[1756840231756,0.62812265,110990.0,110980.0,0.18430788]
[1756840231968,1.21844526,110990.0,110980.0,0.17919788]
[1756840232165,1.22141526,110990.0,110980.0,0.17919788]
[1756840232391,1.22141526,110990.0,110970.0,0.35046033]
[1756840232613,0.41294202,110980.0,110970.0,0.19238033]
[1756840232832,1.11628986,110980.0,110970.0,0.18022889]
[1756840232978,1.14543667,110980.0,110970.0,0.18022889]
[1756840233354,0.73234047,110980.0,110970.0,0.18022889]
[1756840233717,0.73334047,110980.0,110970.0,0.18022889]
[1756840234202,0.73334047,110980.0,110970.0,0.18219889]
[1756840234369,0.55107782,110980.0,110970.0,0.18533889]
[1756840234572,0.70911782,110980.0,110970.0,0.18533889]
[1756840234784,0.70911782,110980.0,110970.0,0.18022889]
[1756840234785,0.89435047,110980.0,110970.0,0.18022889]
[1756840234988,0.71413782,110980.0,110970.0,0.18022889]
[1756840235192,0.14300162,110980.0,110970.0,0.18219889]
[1756840235387,0.71089364,110980.0,110970.0,0.18533889]
[1756840235589,0.71089364,110980.0,110970.0,0.18022889]
[1756840235590,0.89034047,110980.0,110970.0,0.18022889]
[1756840235909,0.89331047,110980.0,110970.0,0.18022889]
[1756840236069,0.89531047,110980.0,110970.0,0.18022889]
[1756840236833,0.89631047,110980.0,110970.0,0.18022889]
[1756840237360,0.89234047,110980.0,110970.0,0.18022889]
[1756840239885,0.89234047,110980.0,110970.0,0.18022889]
[1756840240091,0.30200162,110980.0,110970.0,0.18022889]
[1756840240317,0.89234047,110980.0,110970.0,0.18022889]
[1756840240535,1.30562667,110980.0,110970.0,0.18022889]
[1756840241265,0.89550047,110980.0,110970.0,0.18022889]
[1756840241919,1.30562667,110980.0,110970.0,0.18022889]
[1756840242134,0.89550047,110980.0,110970.0,0.18022889]
[1756840243488,0.48537427,110980.0,110970.0,0.18022889]
[1756840243680,0.89550047,110980.0,110970.0,0.18022889]
[1756840244306,0.34,110970.0,110960.0,0.18023585]
[1756840244512,0.86298101,110970.0,110960.0,0.18023585]
[1756840244723,0.86298101,110970.0,110960.0,0.18523585]
[1756840244940,1.04795968,110970.0,110960.0,0.18523585]
[1756840245573,0.45901466,110970.0,110960.0,0.59536205]
[1756840246036,0.45901466,110970.0,110960.0,0.18623585]
[1756840246239,0.45901466,110970.0,110960.0,0.59636205]
[1756840246448,0.45901466,110970.0,110960.0,0.18623585]
[1756840246906,0.45901466,110970.0,110960.0,0.59636205]
[1756840247578,0.45901466,110970.0,110960.0,0.18623585]
[1756840247811,0.45901466,110970.0,110960.0,0.59636205]
[1756840248662,0.45901466,110970.0,110960.0,0.59536205]
[1756840250015,0.45901466,110970.0,110960.0,0.59636205]
[1756840250745,0.02709867,110970.0,110960.0,1.00648825]
[1756840250943,0.21016709,110990.0,110980.0,0.18021265]
[1756840251269,0.48146752,110990.0,110980.0,0.34301265]
[1756840251466,0.46799277,110990.0,110980.0,0.34301265]
[1756840251793,0.62579277,110990.0,110980.0,0.34301265]
[1756840252133,0.62579277,110990.0,110980.0,0.18521265]
[1756840252336,0.62779277,110990.0,110980.0,0.34301265]
[1756840252537,1.22008538,110990.0,110980.0,0.18021265]
[1756840252741,1.03988897,110990.0,110980.0,0.18021265]
[1756840252947,1.04088897,110990.0,110980.0,0.18021265]
[1756840253156,0.52021265,110980.0,110970.0,0.18022889]
[1756840253400,1.45647986,110980.0,110970.0,0.18022889]
[1756840253568,1.45844986,110980.0,110960.0,0.3470481]
[1756840253741,0.09473206,110970.0,110960.0,0.3500281]
[1756840253943,0.09473206,110970.0,110960.0,0.3520481]
[1756840254151,0.12182887,110970.0,110960.0,0.3520481]
[1756840255446,0.12379887,110970.0,110960.0,0.1912681]